fUST/lending_fUST_20250506
["ID","MTS","AMOUNT","RATE_DAILY","PERIOD"]
[360019138,1746481764719,-4228.5709462,0.00018661,2]
[360019139,1746481764751,-4228.5709462,0.00018661,2]
[360019140,1746481764782,-4228.5709462,0.00018661,2]
[360019141,1746481764814,-4228.5709462,0.00018661,2]
[360019142,1746481764843,-4228.5709462,0.00018661,2]
[360019143,1746481764878,-4228.5709462,0.00018661,2]
[360019144,1746481764909,-4228.5709462,0.00018661,2]
[360019145,1746481764940,-4228.5709462,0.00018661,2]
[360019146,1746481764970,-4228.5709462,0.00018661,2]
[360019147,1746481765000,-4228.5709462,0.00018661,2]
[360019148,1746481765029,-4228.5709462,0.00018661,2]
[360019149,1746481765058,-4228.5709462,0.00018661,2]
[360019150,1746481765086,-4228.5709462,0.00018661,2]
[360019151,1746481765113,-4228.5709462,0.00018661,2]
[360019152,1746481765140,-4438.09685264,0.00018661,2]
[360019153,1746481765169,-4438.09685264,0.00018661,2]
[360019154,1746481765198,-4438.09685264,0.00018661,2]
[360019155,1746481765229,-4438.09685264,0.00018661,2]
[360019156,1746481765258,-4438.09685264,0.00018661,2]
[360019157,1746481765287,-4438.09685264,0.00018661,2]
[360019158,1746481765321,-4438.09685264,0.00018661,2]
[360019159,1746481765350,-4438.09685264,0.00018661,2]
[360019160,1746481765378,-4438.09685264,0.00018661,2]
[360019161,1746481765407,-4438.09685264,0.00018661,2]
[360019162,1746481765435,-4438.09685264,0.00018661,2]
[360019163,1746481765464,-4438.09685264,0.00018661,2]
[360019164,1746481765491,-4438.09685264,0.00018661,2]
[360019165,1746481765518,-4438.09685264,0.00018661,2]
[360019166,1746481765547,-4438.09685264,0.00018661,2]
[360019167,1746481765575,-4438.09685264,0.00018661,2]
[360019168,1746481765603,-4438.09685264,0.00018661,2]
[360019169,1746481765630,-4438.09685264,0.00018661,2]
[360019170,1746481765657,-4438.09685264,0.00018661,2]
[360019171,1746481765684,-4438.09685264,0.00018661,2]
[360019172,1746481765711,-4438.09685264,0.00018661,2]
[360019173,1746481765738,-4438.09685264,0.00018661,2]
[360019174,1746481765765,-4438.09685264,0.00018661,2]
[360019175,1746481765795,-4438.09685264,0.00018661,2]
[360019176,1746481765823,-4438.09685264,0.00018661,2]
[360019177,1746481765852,-4438.09685264,0.00018661,2]
[360019178,1746481765880,-4438.09685264,0.00018661,2]
[360019179,1746481765913,-4301.5400264,0.00018661,2]
[360019180,1746481765944,-4301.5400264,0.00018661,2]
[360019181,1746481765973,-4301.5400264,0.00018661,2]
[360019182,1746481766003,-4301.5400264,0.00018661,2]
[360019183,1746481766031,-4301.5400264,0.00018661,2]
[360019184,1746481766061,-4301.5400264,0.00018661,2]
[360019185,1746481766091,-4301.5400264,0.00018661,2]
[360019186,1746481766120,-4301.5400264,0.00018661,2]
[360019187,1746481766149,-4301.5400264,0.00018661,2]
[360019188,1746481766179,-4301.5400264,0.00018661,2]
[360019189,1746481766207,-4301.5400264,0.00018661,2]
[360019190,1746481766237,-4301.5400264,0.00018661,2]
[360019191,1746481766268,-4301.5400264,0.00018661,2]
[360019192,1746481766297,-4301.5400264,0.00018661,2]
[360019193,1746481766325,-4301.5400264,0.00018661,2]
[360019194,1746481766355,-4301.5400264,0.00018661,2]
[360019195,1746481766381,-4301.5400264,0.00018661,2]
[360019196,1746481766411,-3369.53968735,0.00018661,2]
[360019197,1746481766439,-3369.53968735,0.00018661,2]
[360019198,1746481766467,-3369.53968735,0.00018661,2]
[360019199,1746481766494,-3369.53968735,0.00018661,2]
[360019200,1746481766522,-3369.53968735,0.00018661,2]
[360019201,1746481766550,-3369.53968735,0.00018661,2]
[360019202,1746481766581,-3369.53968735,0.00018661,2]
[360019203,1746481766612,-3369.53968735,0.00018661,2]
[360019204,1746481766641,-3369.53968735,0.00018661,2]
[360019205,1746481766671,-3369.53968735,0.00018661,2]
[360019206,1746481766699,-3369.53968735,0.00018661,2]
[360019207,1746481766720,-50000.0,0.00018661,2]
[360019208,1746481766740,-300.0,0.00018662,2]
[360019209,1746481766760,-500.0,0.00018663,2]
[360019210,1746481766780,-500.0,0.00018673,2]
[360019211,1746481766800,-500.0,0.00018673,2]
[360019212,1746481766820,-500.0,0.00018673,2]
[360019213,1746481766840,-500.0,0.00018673,2]
[360019214,1746481767016,-509.96264343,0.00018673,2]
[360019215,1746481767036,-500.0,0.00018673,2]
[360019216,1746481767057,-500.0,0.00018673,2]
[360019217,1746481767077,-500.0,0.00018673,2]
[360019218,1746481767097,-500.0,0.00018673,2]
[360019219,1746481767117,-500.0,0.00018673,2]
[360019220,1746481767136,-500.0,0.00018673,2]
[360019221,1746481767156,-500.64140692,0.00018673,2]
[360019222,1746481767176,-500.0,0.00018673,2]
[360019223,1746481767196,-500.0,0.00018673,2]
[360019224,1746481767216,-500.0,0.00018673,2]
[360019225,1746481767236,-500.0,0.00018673,2]
[360019226,1746481767258,-500.0,0.00018673,2]
[360019227,1746481767279,-500.0,0.00018673,2]
[360019228,1746481767300,-500.0,0.00018673,2]
[360019229,1746481767321,-500.0,0.00018673,2]
[360019230,1746481767342,-201.13358039,0.00018673,2]
[360019231,1746481767363,-500.0,0.00018673,2]
[360019232,1746481767383,-500.0,0.00018673,2]
[360019233,1746481767403,-408.66284962,0.00018673,2]
[360019234,1746481767424,-501.45792757,0.00018673,2]
[360019235,1746481767443,-500.0,0.00018673,2]
[360019236,1746481767465,-138.97600719,0.00018754,3]
[360019237,1746481767487,-160.27,0.00018754,3]
[360019238,1746481767508,-801.35,0.00018754,3]
[360019239,1746481767528,-151.0,0.00018755,2]
[360019240,1746481767548,-249.77943537,0.00018755,2]
[360019241,1746481767570,-5128.53,0.00018755,3]
[360019242,1746481767591,-2564.26,0.00018755,3]
[360019243,1746481767611,-1282.13,0.00018755,3]
[360019244,1746481767632,-641.07,0.00018755,3]
[360019245,1746481767652,-182.23035355,0.00018755,3]
[360019246,1746481767673,-841.77443764,0.00018755,3]
[360019247,1746481767694,-12607.13495863,0.00018755,3]
[360019248,1746481767714,-151.0,0.00018767,2]
[360019249,1746481767735,-170.26096161,0.00018767,2]
[360019250,1746481767755,-614.21578812,0.00018773,2]
[360019251,1746481767775,-500.0,0.00018773,2]
[360019252,1746481767797,-200.91653079,0.00018773,2]
[360019253,1746481767817,-500.0,0.00018773,2]
[360019254,1746481767837,-500.0,0.00018773,2]
[360019255,1746481767858,-152.0,0.0001879,2]
[360019256,1746481767878,-500.0,0.00018873,2]
[360019257,1746481767898,-500.0,0.00018873,2]
[360019258,1746481767918,-500.0,0.00018937,2]
[360019259,1746481767939,-1714.90256706,0.00018977,2]
[360019260,1746481767959,-1000.0,0.00019077,2]
[360019261,1746481767980,-1779.9970835,0.0001911,2]
[360019262,1746481768003,-151.0,0.00019178,2]
[360019263,1746481768026,-521.408782,0.00019178,2]
[360019264,1746481768047,-500.0,0.00019211,2]
[360019265,1746481768067,-156.587,0.00019233,2]
[360019266,1746481768088,-178.59501001,0.00019288,2]
[360019267,1746481768108,-3537.629843,0.00019314,2]
[360019268,1746481768128,-100000.0,0.00019329,2]
[360019269,1746481768148,-500.0,0.00019485,2]
[360019270,1746481768168,-3.0,0.000195,2]
[360019271,1746481768188,-151.0,0.000196,2]
[360019272,1746481768209,-500.0,0.00019759,2]
[360019273,1746481768230,-160.0,0.00019892,2]
[360019274,1746481768252,-160.0,0.0002,3]
[360019275,1746481768274,-13324.96614675,0.00020096,2]
[360019276,1746481768298,-151.0,0.00020124,2]
[360019277,1746481768320,-641.06,0.00020124,3]
[360019278,1746481768342,-10257.06,0.00020125,3]
[360019279,1746481768366,-3250.12457478,0.00020125,3]
[360019303,1746481832475,-151.0,0.00018652,2]
[360019304,1746481832485,-300.0,0.0001866,2]
[360019306,1746481832495,-273.0,0.0001866,2]
[360019307,1746481832504,-1200.0,0.0001866,2]
[360019308,1746481832514,-300.0,0.0001866,2]
[360019310,1746481832523,-500.0,0.00018661,2]
[360019311,1746481832533,-500.0,0.00018661,2]
[360019312,1746481832542,-500.0,0.00018661,2]
[360019313,1746481832552,-500.0,0.00018661,2]
[360019314,1746481832562,-532.58571857,0.00018661,2]
[360019315,1746481832572,-500.0,0.00018661,2]
[360019316,1746481832582,-500.0,0.00018673,2]
[360019317,1746481832594,-500.0,0.00018673,2]
[360019318,1746481832604,-426.82261688,0.00018673,2]
[360019319,1746481832614,-507.78518072,0.00018673,2]
[360019320,1746481832624,-500.0,0.00018673,2]
[360019321,1746481832634,-500.0,0.00018673,2]
[360019322,1746481832644,-500.0,0.00018673,2]
[360019323,1746481832653,-208.41893146,0.00018673,2]
[360019324,1746481832663,-500.0,0.00018673,2]
[360019325,1746481832673,-500.0,0.00018673,2]
[360019326,1746481832683,-500.0,0.00018673,2]
[360019327,1746481832694,-4696.01675573,0.000189,2]
[360019328,1746481832703,-189.39372514,0.000198,2]
[360019329,1746481832713,-209.4481427,0.00019805,2]
[360019330,1746481832722,-160.0,0.0002,3]
[360019331,1746481832732,-151.0,0.00020021,2]
[360019332,1746481832741,-151.0,0.00020124,2]
[360019333,1746481832751,-151.0,0.00020124,2]
[360019334,1746481832760,-1878.39542522,0.00020125,3]
[360019335,1746481832770,-2564.26,0.00020125,3]
[360019336,1746481832780,-1282.14,0.00020125,3]
[360019337,1746481832790,-420.0,0.00020346,2]
[360019338,1746481832800,-420.0,0.00020346,2]
[360019339,1746481832810,-1680.0,0.00020446,2]
[360019340,1746481832820,-152.0,0.00020874,2]
[360019341,1746481832829,-151.0,0.000213,3]
[360019342,1746481832839,-192.0,0.00021344,2]
[360019343,1746481832859,-151.0,0.0002139,2]
[360019344,1746481832871,-19991.30593172,0.00021427,2]
[360019345,1746481832881,-1889.90815279,0.0002153,2]
[360019346,1746481832891,-500.0,0.0002163,2]
[360019347,1746481832902,-254.39539862,0.0002163,2]
[360019348,1746481832912,-2726.92338988,0.00021631,2]
[360019369,1746481838451,-10598.04275687,0.00021631,2]
[360019370,1746481838461,-244.0,0.00021824,2]
[360019371,1746481838471,-160.0,0.00021917,2]
[360019372,1746481838480,-500.0,0.00021918,2]
[360019373,1746481838489,-587.0,0.00022185,2]
[360019374,1746481838498,-587.0,0.00022185,2]
[360019375,1746481838507,-2351.0,0.00022402,2]
[360019376,1746481838516,-468.83072427,0.00022447,2]
[360019377,1746481838525,-521.408782,0.00022603,2]
[360019378,1746481838535,-151.0,0.00023,8]
[360019379,1746481838544,-4415.24232096,0.00023,2]
[360019380,1746481838614,-584.75767904,0.00023,2]
[360019381,1746481838624,-421.83547488,0.00023,3]
[360019382,1746481838634,-160.0,0.00023,3]
[360019383,1746481838643,-160.0,0.00023,3]
[360019384,1746481838653,-160.0,0.00023,3]
[360019385,1746481838663,-5862.66040023,0.00023165,2]
[360019386,1746481838675,-367.84,0.00023165,2]
[360019387,1746481838686,-3670.70435593,0.00023165,2]
[360019712,1746481843649,-10.59773892,0.00023165,2]
[360019715,1746481843661,-1899.39600215,0.00023165,2]
[360020104,1746481847533,-0.16535292,0.00022484,2]
[360020108,1746481847560,-249.83464708,0.00022484,2]
[360020110,1746481847570,-1513.76764952,0.00023165,2]
[360020112,1746481847579,-160.0,0.00023287,2]
[360020114,1746481847589,-465.19153621,0.00023569,2]
[360020116,1746481847602,-151.0,0.000237,5]
[360020118,1746481847612,-500.0,0.00023747,2]
[360020120,1746481847621,-24900.0,0.00023868,2]
[360020122,1746481847630,-4696.01675573,0.000239,2]
[360020124,1746481847640,-1000.0,0.00024152,2]
[360020126,1746481847650,-1000.0,0.00024152,2]
[360020128,1746481847659,-1000.0,0.00024152,2]
[360020130,1746481847670,-1000.0,0.00024152,2]
[360020132,1746481847679,-1000.0,0.00024152,2]
[360020134,1746481847689,-500.0,0.00024152,2]
[360020136,1746481847698,-1000.0,0.00024152,2]
[360020138,1746481847707,-1000.0,0.00024152,2]
[360020140,1746481847716,-384.07360328,0.00024152,2]
[360020142,1746481847725,-1000.0,0.00024152,2]
[360020144,1746481847734,-430.33020921,0.00024152,2]
[360020146,1746481847743,-647.13703751,0.00024152,2]
[360020148,1746481847753,-518.96642368,0.00024152,2]
[360020150,1746481847762,-593.58823204,0.00024152,2]
[360020152,1746481847772,-1000.0,0.00024152,2]
[360020154,1746481847781,-1000.0,0.00024152,2]
[360020157,1746481847791,-1889.90815272,0.00024153,2]
[360020176,1746481847958,-823.0,0.0002419,2]
[360020178,1746481847968,-823.0,0.0002419,2]
[360020180,1746481847978,-1000.0,0.00024252,2]
[360020182,1746481847988,-1000.0,0.00024252,2]
[360020184,1746481847998,-151.0,0.000243,7]
[360020186,1746481848007,-11124.18200923,0.00024518,2]
[360020188,1746481848017,-3292.0,0.00024546,2]
[360020191,1746481848028,-160.0,0.00024657,2]
[360020193,1746481848037,-250.0,0.00024657,2]
[360020195,1746481848046,-200.0,0.00024658,15]
[360020197,1746481848055,-380.0,0.00024658,2]
[360020199,1746481848065,-151.0,0.000247,8]
[360020201,1746481848074,-13324.96614675,0.000247,2]
[360020202,1746481848083,-500.0,0.00024773,2]
[360020205,1746481848094,-500.0,0.00024773,2]
[360020207,1746481848104,-500.0,0.00024773,2]
[360020209,1746481848113,-614.95006914,0.00024773,2]
[360020211,1746481848122,-501.46132052,0.00024773,2]
[360020213,1746481848132,-500.0,0.00024773,2]
[360020215,1746481848141,-170.65675154,0.00024773,2]
[360020217,1746481848151,-500.0,0.00024773,2]
[360020219,1746481848160,-500.0,0.00024773,2]
[360020221,1746481848170,-500.0,0.00024773,2]
[360020223,1746481848179,-500.0,0.00024773,2]
[360020225,1746481848189,-500.0,0.00024773,2]
[360020227,1746481848199,-500.0,0.00024773,2]
[360020229,1746481848209,-500.0,0.00024773,2]
[360020231,1746481848218,-500.0,0.00024773,2]
[360020233,1746481848228,-500.0,0.00024773,2]
[360020235,1746481848237,-500.0,0.00024773,2]
[360020237,1746481848246,-500.08320944,0.00024773,2]
[360020239,1746481848255,-500.0,0.00024773,2]
[360020241,1746481848264,-500.0,0.00024773,2]
[360020243,1746481848274,-500.0,0.00024773,2]
[360020245,1746481848283,-501.05625803,0.00024773,2]
[360020247,1746481848293,-500.0,0.00024773,2]
[360020249,1746481848302,-500.0,0.00024773,2]
[360020251,1746481848311,-500.0,0.00024773,2]
[360020253,1746481848321,-530.2459584,0.00024773,2]
[360020255,1746481848330,-150.0,0.00024773,2]
[360020257,1746481848341,-160.0,0.00024799,3]
[360020259,1746481848351,-421.83547488,0.00024799,3]
[360020261,1746481848360,-182.23035355,0.00024799,3]
[360020263,1746481848369,-160.0,0.00024799,3]
[360020265,1746481848379,-841.77443764,0.00024799,3]
[360020267,1746481848387,-12607.13495863,0.00024799,3]
[360020269,1746481848397,-1591.9951077,0.000248,2]
[360020271,1746481848407,-1693.02809307,0.000248,2]
[360020273,1746481848417,-500.0,0.00024873,2]
[360020275,1746481848426,-500.0,0.00024873,2]
[360020277,1746481848435,-500.0,0.00024873,2]
[360020279,1746481848445,-500.0,0.00024873,2]
[360020281,1746481848454,-500.0,0.00024873,2]
[360020283,1746481848463,-500.0,0.00024873,2]
[360020285,1746481848472,-500.0,0.00024873,2]
[360020287,1746481848482,-500.0,0.00024873,2]
[360020289,1746481848491,-282.55205004,0.00024873,2]
[360020291,1746481848500,-500.0,0.00024873,2]
[360020293,1746481848510,-509.98688313,0.00024873,2]
[360020295,1746481848519,-500.0,0.00024873,2]
[360020297,1746481848528,-500.0,0.00024873,2]
[360020299,1746481848536,-500.0,0.00024873,2]
[360020301,1746481848545,-500.0,0.00024873,2]
[360020303,1746481848554,-500.0,0.00024873,2]
[360020305,1746481848563,-500.0,0.00024873,2]
[360020307,1746481848573,-500.0,0.00024873,2]
[360020309,1746481848582,-500.0,0.00024873,2]
[360020311,1746481848591,-179.08610196,0.0002489,2]
[360020313,1746481848605,-160.0,0.000249,3]
[360020315,1746481848615,-133397.23573138,0.000249,2]
[360020394,1746481962594,-160.0,0.0001866,2]
[360020395,1746481962817,-466.0,0.00018661,2]
[360020397,1746482027289,-165.0,0.0001866,2]
[360020398,1746482094115,-348.0,0.00019178,2]
[360020404,1746482160584,-5139.0,0.00019,2]
[360020409,1746482538406,-161.0,0.00018898,2]
[360020410,1746482538429,-226.73322063,0.00018898,2]
[360020411,1746482538450,-250.0,0.00018899,2]
[360020412,1746482538475,-1200.0,0.00018998,2]
[360020413,1746482538496,-74.26677937,0.00018998,2]
[360020414,1746482542384,-150.0,0.00018998,2]
[360020419,1746482738243,13248.7129653,0.00017998,2]
[360020421,1746482831399,-386.43962041,0.00018699,2]
[360020422,1746482836030,-250.0,0.00018699,2]
[360020423,1746482838116,-69650.81557608,0.00018699,2]
[360020424,1746482838138,-161.0,0.00018797,2]
[360020425,1746482838160,-250.0,0.00018799,2]
[360020426,1746482838424,-1605.50691251,0.00018897,2]
[360020427,1746482838447,-300.0,0.00018897,2]
[360020428,1746482838468,-1029.83435527,0.00018898,2]
[360020429,1746482838490,-5377.90250943,0.00018898,2]
[360020430,1746482838511,-253.0,0.00018996,2]
[360020431,1746482838532,-300.0,0.00018996,2]
[360020432,1746482838553,-1200.0,0.00018996,2]
[360020433,1746482838574,-300.0,0.00018996,2]
[360020434,1746482838596,-500.0,0.00018997,2]
[360020435,1746482838618,-178.07677904,0.00018997,2]
[360020436,1746482838639,-538.44792704,0.00018997,2]
[360020437,1746482838661,-500.0,0.00018997,2]
[360020438,1746482838685,-500.0,0.00018997,2]
[360020439,1746482838708,-386.31067715,0.00018997,2]
[360020440,1746482838731,-500.0,0.00018997,2]
[360020441,1746482838753,-500.0,0.00018997,2]
[360020442,1746482838780,-500.0,0.00018997,2]
[360020443,1746482838803,-406.54819517,0.00018997,2]
[360020444,1746482838841,-690.69601197,0.00018997,2]
[360020445,1746482838865,-500.0,0.00018997,2]
[360020446,1746482838889,-500.0,0.00018997,2]
[360020447,1746482838912,-500.0,0.00018997,2]
[360020448,1746482838938,-500.0,0.00018997,2]
[360020449,1746482838976,-690.69601197,0.00018997,2]
[360020450,1746482839001,-500.0,0.00018997,2]
[360020451,1746482839026,-500.0,0.00018997,2]
[360020452,1746482839061,-690.69601197,0.00018997,2]
[360020453,1746482839084,-159.95641638,0.00018997,2]
[360020454,1746482839121,-690.69601197,0.00018997,2]
[360020455,1746482839155,-690.69601197,0.00018997,2]
[360020456,1746482839188,-690.69601197,0.00018997,2]
[360020457,1746482839221,-690.69601197,0.00018997,2]
[360020458,1746482839253,-690.69601197,0.00018997,2]
[360020459,1746482839286,-690.69601197,0.00018997,2]
[360020460,1746482839319,-690.69601197,0.00018997,2]
[360020461,1746482839352,-690.69601197,0.00018997,2]
[360020462,1746482839383,-690.69601197,0.00018997,2]
[360020463,1746482839414,-690.69601197,0.00018997,2]
[360020464,1746482839446,-690.69601197,0.00018997,2]
[360020465,1746482839478,-690.69601197,0.00018997,2]
[360020466,1746482839511,-690.69601197,0.00018997,2]
[360020467,1746482839545,-690.69601197,0.00018997,2]
[360020468,1746482839579,-690.69601197,0.00018997,2]
[360020469,1746482839610,-690.69601197,0.00018997,2]
[360020470,1746482839644,-690.69601197,0.00018997,2]
[360020471,1746482839677,-690.69601197,0.00018997,2]
[360020472,1746482839711,-690.69601197,0.00018997,2]
[360020473,1746482839744,-690.69601197,0.00018997,2]
[360020474,1746482839778,-690.69601197,0.00018997,2]
[360020475,1746482839810,-690.69601197,0.00018997,2]
[360020476,1746482839843,-690.69601197,0.00018997,2]
[360020477,1746482839877,-690.69601197,0.00018997,2]
[360020478,1746482839909,-690.69601197,0.00018997,2]
[360020479,1746482839949,-690.69601197,0.00018997,2]
[360020480,1746482839988,-690.69601197,0.00018997,2]
[360020481,1746482840008,-500.0,0.00018997,2]
[360020482,1746482840030,-500.0,0.00018997,2]
[360020483,1746482840055,-428.75028951,0.00018997,2]
[360020484,1746482840078,-239.99515737,0.00018997,2]
[360020485,1746482840119,-969.27883408,0.00018997,2]
[360020486,1746482840157,-969.27883408,0.00018997,2]
[360020487,1746482840191,-969.27883408,0.00018997,2]
[360020488,1746482840224,-969.27883408,0.00018997,2]
[360020489,1746482840258,-969.27883408,0.00018997,2]
[360020490,1746482840291,-969.27883408,0.00018997,2]
[360020491,1746482840323,-969.27883408,0.00018997,2]
[360020492,1746482840358,-969.27883408,0.00018997,2]
[360020493,1746482840391,-969.27883408,0.00018997,2]
[360020494,1746482840422,-969.27883408,0.00018997,2]
[360020495,1746482840454,-969.27883408,0.00018997,2]
[360020496,1746482840485,-969.27883408,0.00018997,2]
[360020497,1746482840517,-969.27883408,0.00018997,2]
[360020498,1746482840549,-969.27883408,0.00018997,2]
[360020499,1746482840579,-969.27883408,0.00018997,2]
[360020500,1746482840610,-969.27883408,0.00018997,2]
[360020501,1746482840643,-969.27883408,0.00018997,2]
[360020502,1746482840675,-969.27883408,0.00018997,2]
[360020503,1746482840708,-969.27883408,0.00018997,2]
[360020504,1746482840741,-969.27883408,0.00018997,2]
[360020505,1746482840776,-969.27883408,0.00018997,2]
[360020506,1746482840812,-969.27883408,0.00018997,2]
[360020507,1746482840848,-969.27883408,0.00018997,2]
[360020508,1746482840885,-969.27883408,0.00018997,2]
[360020509,1746482840922,-969.27883408,0.00018997,2]
[360020510,1746482840959,-969.27883408,0.00018997,2]
[360020511,1746482840997,-959.18217955,0.00018997,2]
[360020512,1746482841031,-959.18217955,0.00018997,2]
[360020513,1746482841066,-959.18217955,0.00018997,2]
[360020514,1746482841101,-959.18217955,0.00018997,2]
[360020515,1746482841134,-959.18217955,0.00018997,2]
[360020516,1746482841169,-959.18217955,0.00018997,2]
[360020517,1746482841201,-959.18217955,0.00018997,2]
[360020518,1746482841233,-959.18217955,0.00018997,2]
[360020519,1746482841270,-959.18217955,0.00018997,2]
[360020520,1746482841304,-959.18217955,0.00018997,2]
[360020521,1746482841336,-959.18217955,0.00018997,2]
[360020522,1746482841369,-959.18217955,0.00018997,2]
[360020523,1746482841402,-959.18217955,0.00018997,2]
[360020524,1746482841436,-959.18217955,0.00018997,2]
[360020525,1746482841471,-959.18217955,0.00018997,2]
[360020526,1746482841503,-917.21795919,0.00018997,2]
[360020527,1746482841537,-432.54744817,0.00018997,2]
[360020528,1746482854099,-360.44841479,0.00018996,2]
[360020529,1746482858508,-250.0,0.00018699,2]
[360020533,1746482964105,-250.0,0.00018896,2]
[360020534,1746482964127,-33.09352504,0.00018994,2]
[360020535,1746482991114,24900.0,0.00017997,2]
[360020536,1746482992911,645.2828204,0.00017997,2]
[360020567,1746483032739,-1497.66307823,0.00018895,2]
[360020568,1746483032749,-1565.33891857,0.000189,2]
[360020569,1746483032759,-300.0,0.00018972,2]
[360020571,1746483032768,-517.11327198,0.00018973,2]
[360020572,1746483032777,-164.87987634,0.00018973,2]
[360020574,1746483032787,-33.4305253,0.00018973,2]
[360020580,1746483032835,-174.85993679,0.00018973,2]
[360020582,1746483032845,-500.0,0.00018973,2]
[360020584,1746483032855,-500.0,0.00018973,2]
[360020586,1746483032864,-500.0,0.00018973,2]
[360020587,1746483032874,-500.0,0.00018973,2]
[360020588,1746483032884,-500.0,0.00018973,2]
[360020589,1746483032894,-151.0,0.00018986,2]
[360020590,1746483032904,-300.0,0.00018994,2]
[360020591,1746483032914,-300.0,0.00018994,2]
[360020592,1746483032923,-300.0,0.00018994,2]
[360020593,1746483032933,-1200.0,0.00018994,2]
[360020594,1746483032943,-500.0,0.00018994,2]
[360020595,1746483032952,-468.77902449,0.00018994,2]
[360020596,1746483032962,-320.0,0.00018995,2]
[360020597,1746483032972,-6.39344545,0.00018996,2]
[360020598,1746483032984,-24993.71664288,0.00018996,2]
[360020599,1746483032997,-1058.7216521,0.00018996,2]
[360020622,1746483038690,-158.75003217,0.00018994,2]
[360020625,1746483038700,-320.70118635,0.00018994,2]
[360020628,1746483038709,-1677.47268961,0.00018994,2]
[360020631,1746483038719,-1677.47268961,0.00018994,2]
[360020633,1746483038729,-1677.47268961,0.00018994,2]
[360020635,1746483038738,-1677.47268961,0.00018994,2]
[360020637,1746483038748,-1677.47268961,0.00018994,2]
[360020640,1746483038758,-1677.47268961,0.00018994,2]
[360020641,1746483038768,-1677.47268961,0.00018994,2]
[360020644,1746483038778,-1677.47268961,0.00018994,2]
[360020645,1746483038788,-1677.47268961,0.00018994,2]
[360020647,1746483038797,-1677.47268961,0.00018994,2]
[360020649,1746483038807,-1677.47268961,0.00018994,2]
[360020651,1746483038817,-1677.47268961,0.00018994,2]
[360020653,1746483038828,-1677.47268961,0.00018994,2]
[360020655,1746483038838,-1677.47268961,0.00018994,2]
[360020657,1746483038848,-1677.47268961,0.00018994,2]
[360020659,1746483038858,-1677.47268961,0.00018994,2]
[360020661,1746483038868,-1677.47268961,0.00018994,2]
[360020663,1746483038878,-1677.47268961,0.00018994,2]
[360020665,1746483038888,-1677.47268961,0.00018994,2]
[360020667,1746483038898,-1677.47268961,0.00018994,2]
[360020669,1746483038908,-1677.47268961,0.00018994,2]
[360020671,1746483038918,-1677.47268961,0.00018994,2]
[360020673,1746483038928,-1677.47268961,0.00018994,2]
[360020675,1746483038938,-1677.47268961,0.00018994,2]
[360020677,1746483038947,-1677.47268961,0.00018994,2]
[360020679,1746483038956,-1677.47268961,0.00018994,2]
[360020681,1746483038966,-14669.06364601,0.00018996,2]
[360020874,1746483041066,-9272.10461356,0.00018996,2]
[360020877,1746483041076,-160.0,0.00018997,2]
[360020879,1746483041085,-500.0,0.00018999,2]
[360020881,1746483041095,-500.0,0.00018999,2]
[360020883,1746483041104,-500.0,0.00018999,2]
[360020885,1746483041115,-500.0,0.00018999,2]
[360020888,1746483041128,-500.0,0.00018999,2]
[360020891,1746483041137,-4892.98126875,0.00019,2]
[360020938,1746483041349,-1497.73124459,0.00019,2]
[360020940,1746483041358,-279.556068,0.00019714,2]
[360020942,1746483041368,-141.64467385,0.00019741,2]
[360020943,1746483041379,-4665.73461295,0.00019741,2]
[360020944,1746483041388,-1000.0,0.0001978,2]
[360020945,1746483041397,-250.0,0.00019978,2]
[360020946,1746483041406,-151.0,0.0002,2]
[360020947,1746483041415,-301.8777938,0.00020168,2]
[360020948,1746483041424,-1000.0,0.000205,2]
[360020949,1746483041433,-420.0,0.0002068,2]
[360020950,1746483041442,-420.0,0.00020704,2]
[360020951,1746483041451,-182.76,0.00020799,3]